bitfinex/quotes_SOLUSD_20241019
["timestamp","ask_amount","ask_price","bid_price","bid_amount"]
[1729374118787,6.3548,157.37,157.33,6.3559]
[1729374132501,6.3541,157.38,157.33,6.3559]
[1729374168331,6.3545,157.37,157.33,6.3559]
[1729374196960,15.3327,157.39,157.33,6.3559]
[1729374197264,6.3541,157.38,157.33,6.3559]
[1729374210355,6.3541,157.38,157.33,6.3557]
[1729374212176,6.3541,157.38,157.3,7.6890749]
[1729374212177,6.3535,157.4,157.35,6.3548]
[1729374214780,6.3536,157.39,157.35,6.3548]
[1729374217981,6.3536,157.39,157.31,39.120084]
[1729374227390,6.3536,157.39,157.34,6.3555]
[1729374230889,6.3538,157.39,157.34,6.3555]
[1729374233397,16.4002,157.4,157.28,16.5591]
[1729374233604,6.3547,157.37,157.29,23.776884]
[1729374233790,16.4002,157.4,157.29,23.776884]
[1729374233791,5.86583904,157.39,157.29,23.776884]
[1729374234290,6.3551,157.36,157.31,6.3568]
[1729374240504,12.49674138,157.39,157.28,16.5591]
[1729374240689,6.3549,157.36,157.31,6.3567]
[1729374242879,6.3553,157.35,157.31,6.3567]
[1729374247805,6.3553,157.35,157.3,6.3572]
[1729374250412,6.3553,157.35,157.27,0.6288872]
[1729374250613,6.3553,157.35,157.3,6.3568]
[1729374251804,22.7551,157.36,157.31,6.3567]
[1729374252412,16.4002,157.36,157.31,6.3567]
[1729374252615,6.3553,157.35,157.31,6.3567]
[1729374255389,16.4002,157.36,157.28,23.776884]
[1729374255796,22.7552,157.36,157.31,6.3567]
[1729374255999,16.4002,157.36,157.28,23.776884]
[1729374256201,6.3555,157.35,157.3,6.3569]
[1729374262025,6.3557,157.34,157.3,6.3569]
[1729374264330,6.3557,157.34,157.27,0.6288872]
[1729374264707,6.3552,157.35,157.28,6.358]
[1729374264925,6.3562,157.33,157.28,6.358]
[1729374272812,6.62863228,157.35,157.27,0.6288872]
[1729374274522,6.3567,157.32,157.27,0.6288872]
[1729374277423,6.62863228,157.35,157.27,0.6288872]
[1729374277738,6.3568,157.32,157.27,0.6288872]
[1729374281541,6.62863228,157.35,157.27,0.6288872]
[1729374281746,6.3568,157.31,157.27,0.6288872]
[1729374296262,6.62792637,157.33,157.27,0.6288872]
[1729374296467,12.98392637,157.33,157.28,6.3577]
[1729374297662,6.62792637,157.33,157.28,6.3577]
[1729374297860,6.3565,157.32,157.27,6.9872872]
[1729374298046,6.3571,157.31,157.27,0.6288872]
[1729374300754,6.3569,157.31,157.27,6.9870872]
[1729374301172,6.62792637,157.33,157.27,0.6288872]
[1729374301359,6.3569,157.31,157.27,6.9871872]
[1729374304074,6.3569,157.31,157.27,0.6288872]
[1729374316496,6.3565,157.32,157.27,6.9870872]
[1729374317180,6.3565,157.32,157.28,6.358]
[1729374318285,6.3561,157.33,157.28,6.358]
[1729374321677,12.98324078,157.35,157.3,6.3572]
[1729374322799,6.3557,157.34,157.3,6.3572]
[1729374325091,6.62764078,157.35,157.3,6.3572]
[1729374325300,12.98294078,157.35,157.3,6.3572]
[1729374335192,22.755,157.36,157.31,6.3568]
[1729374339004,6.3548,157.36,157.31,6.3568]
[1729374342500,12.98021511,157.37,157.32,6.3561]
[1729374347413,6.62551511,157.37,157.29,23.776884]
[1729374347614,6.62551511,157.37,157.35,6.3551]
[1729374347820,5.86583904,157.39,157.35,6.3551]
[1729374348003,12.21943904,157.39,157.35,6.3551]
[1729374348195,5.86583904,157.39,157.29,23.776884]
[1729374348620,5.86583904,157.39,157.35,6.3549]
[1729374353116,6.3532,157.4,157.35,6.3549]
[1729374355314,6.3541,157.38,157.31,20.0]
[1729374357508,6.3541,157.38,157.33,6.3557]
[1729374359824,6.3528,157.41,157.34,6.3553]
[1729374360029,6.3536,157.4,157.34,6.3553]
[1729374360501,6.3536,157.4,157.31,20.0]
[1729374361534,6.3528,157.41,157.35,6.3549]
[1729374361733,6.3528,157.41,157.36,6.3547]
[1729374362533,6.3532,157.4,157.36,6.3547]
[1729374363729,12.97667629,157.42,157.32,23.776884]
[1729374369315,12.97667629,157.42,157.34,23.776884]
[1729374375031,6.62417629,157.42,157.35,15.774]
[1729374375424,6.62417629,157.42,157.36,23.776884]
[1729374375625,28.9553,157.44,157.36,23.776884]
[1729374376919,6.352,157.43,157.36,23.776884]
[1729374377321,12.9737206,157.46,157.38,23.776884]
[1729374377536,1.10443142,157.5,157.38,23.776884]
[1729374377537,6.35,157.48,157.4,23.776884]
[1729374379735,6.3497,157.49,157.4,23.776884]
[1729374380750,6.3497,157.49,157.39,23.776884]
[1729374382531,12.97042188,157.5,157.41,23.776884]
[1729374387932,6.3493,157.5,157.41,23.776884]
[1729374388134,6.3488,157.51,157.41,23.776884]
[1729374390975,22.8919177,157.52,157.41,23.776884]
[1729374391262,6.3489,157.51,157.41,23.776884]
[1729374394863,6.3489,157.51,157.43,23.776884]
[1729374398274,6.3489,157.51,157.44,20.0]
[1729374402960,6.3489,157.51,157.43,23.776884]
[1729374403276,6.3489,157.51,157.44,20.0]
[1729374409105,6.3484,157.52,157.44,20.0]
[1729374412500,12.96681086,157.54,157.45,23.776884]
[1729374412707,6.3479,157.54,157.45,23.776884]
[1729374414015,21.8564,157.55,157.45,23.776884]
[1729374414193,21.8564,157.55,157.45,30.297484]
[1729374416211,21.8564,157.55,157.45,23.776884]
[1729374416599,21.8564,157.55,157.45,30.297484]
[1729374417023,15.5092,157.55,157.45,30.297484]
[1729374422210,15.5092,157.55,157.47,23.776884]
[1729374422440,12.65683404,157.57,157.47,23.776884]
[1729374422639,19.00323404,157.57,157.47,23.776884]
[1729374423337,12.65683404,157.57,157.5,20.0]
[1729374423533,6.0389,157.57,157.51,23.776884]
[1729374426438,15.5092,157.58,157.51,23.776884]
[1729374437342,6.3451,157.6,157.51,23.776884]
[1729374438829,6.3451,157.6,157.53,23.776884]
[1729374440658,12.3836,157.61,157.53,23.776884]
[1729374441541,6.0389,157.61,157.53,23.776884]
[1729374444484,6.0389,157.61,157.55,23.776884]
[1729374445068,21.9895,157.62,157.55,23.776884]
[1729374452479,15.645,157.62,157.55,23.776884]
[1729374457259,6.344,157.63,157.55,23.776884]
[1729374467572,6.3436,157.64,157.55,23.776884]
[1729374471585,29.1736,157.65,157.55,23.776884]
[1729374472085,22.8304,157.65,157.55,23.776884]
[1729374475789,29.1735,157.65,157.55,23.776884]
[1729374486613,29.1735,157.65,157.57,23.776884]
[1729374487111,29.1735,157.65,157.56,23.776884]
[1729374494820,29.1735,157.65,157.56,23.776884]
[1729374497740,22.8304,157.65,157.56,23.776884]
[1729374497905,22.8304,157.65,157.55,7.67765958]
[1729374499412,6.3442,157.63,157.56,23.776884]
[1729374500599,15.0807,157.64,157.55,7.67765958]
[1729374500799,6.345,157.61,157.55,7.67765958]
[1729374504831,27.9565,157.61,157.55,7.67765958]
[1729374505218,21.6115,157.61,157.55,7.67765958]
[1729374505416,6.3455,157.6,157.55,7.67765958]
[1729374506817,6.3455,157.6,157.5,43.776884]
[1729374507138,6.3458,157.59,157.5,43.776884]
[1729374509141,21.6115,157.61,157.49,15.7489]
[1729374509336,6.3468,157.56,157.49,15.7489]
[1729374510514,6.3468,157.56,157.48,20.0]
[1729374510836,6.3468,157.56,157.49,23.776884]
[1729374511031,37.4738,157.61,157.49,23.776884]
[1729374511251,6.3464,157.57,157.49,23.776884]
[1729374511435,6.61095134,157.6,157.49,23.776884]
[1729374511747,6.346,157.58,157.49,23.776884]
[1729374521174,12.95615134,157.6,157.49,23.776884]
[1729374521357,6.3459,157.59,157.49,23.776884]
[1729374523079,6.3461,157.58,157.49,23.776884]
[1729374523259,6.3464,157.57,157.5,20.0]
[1729374527466,6.3462,157.58,157.5,20.0]
[1729374530786,6.3467,157.57,157.5,20.0]
[1729374531993,6.347,157.56,157.47,23.776884]
[1729374533293,6.347,157.56,157.48,20.0]
[1729374533503,6.347,157.56,157.48,19.97229]
[1729374543209,12.5962,157.56,157.48,19.97229]
[1729374543507,6.3472,157.55,157.47,23.776884]
[1729374546618,12.596,157.56,157.47,23.776884]
[1729374548309,6.2492,157.56,157.47,23.776884]
[1729374548611,6.2492,157.56,157.48,20.0]
[1729374549499,12.596,157.56,157.48,20.0]
[1729374556434,6.3468,157.56,157.49,23.776884]
[1729374557004,6.3464,157.57,157.5,15.7637]
[1729374557204,6.3456,157.59,157.51,23.776884]
[1729374562502,12.95635134,157.6,157.51,23.776884]
[1729374562936,6.61095134,157.6,157.51,23.776884]
[1729374563236,6.3456,157.59,157.51,23.776884]
[1729374564242,22.8101,157.59,157.51,23.776884]
[1729374581553,16.4645,157.59,157.51,23.776884]
[1729374584763,6.3452,157.6,157.53,23.776884]
[1729374597579,6.3448,157.61,157.53,23.776884]
[1729374601474,33.97218412,157.63,157.53,23.776884]
[1729374601681,6.3447,157.61,157.53,23.776884]
[1729374602388,40.31618412,157.63,157.53,23.776884]
[1729374602683,33.69357662,157.63,157.55,23.776884]
[1729374606491,27.34957662,157.63,157.55,23.776884]
[1729374611306,26.84957662,157.63,157.55,23.776884]
[1729374611795,15.374,157.63,157.55,23.776884]
[1729374617091,6.3432,157.65,157.55,23.776884]
[1729374623720,6.3432,157.65,157.57,23.776884]
[1729374641761,6.3431,157.66,157.57,23.776884]
[1729374641935,6.3432,157.65,157.57,23.776884]
[1729374642448,6.3427,157.66,157.57,23.776884]
[1729374642630,6.3435,157.65,157.57,23.776884]
[1729374643345,6.3436,157.64,157.57,23.776884]
[1729374643651,6.3441,157.63,157.57,23.776884]
[1729374644338,27.8221738,157.67,157.57,23.776884]
[1729374644548,6.3441,157.63,157.57,23.776884]
[1729374645422,6.3447,157.62,157.56,7.92443201]
[1729374645838,6.3453,157.6,157.56,7.92443201]
[1729374646142,6.3457,157.59,157.5,24.00489793]
[1729374646345,6.3463,157.58,157.5,24.00489793]
[1729374646549,12.6629,157.58,157.5,8.27189793]
[1729374646749,12.6629,157.58,157.47,13.73348036]
[1729374646923,12.6629,157.58,157.48,8.64384238]
[1729374647421,22.7909,157.57,157.47,13.73348036]
[1729374647622,22.7909,157.57,157.48,23.776884]
[1729374647822,22.7909,157.57,157.47,13.73348036]
[1729374648445,22.7909,157.57,157.47,7.68038036]
[1729374648446,16.4442,157.57,157.47,7.68038036]
[1729374648754,6.3485,157.52,157.47,7.68038036]
[1729374649447,6.3491,157.51,157.47,7.68038036]
[1729374651632,15.8675,157.56,157.47,7.68038036]
[1729374651847,6.3482,157.53,157.47,7.68038036]
[1729374652523,6.3475,157.55,157.48,23.776884]
[1729374653439,6.3477,157.54,157.48,23.776884]
[1729374655558,22.3036846,157.57,157.48,23.776884]
[1729374655849,6.3472,157.55,157.48,23.776884]
[1729374658554,35.27378644,157.57,157.48,23.776884]
[1729374658728,28.6501846,157.57,157.48,23.776884]
[1729374660740,28.6501846,157.57,157.5,23.776884]
[1729374661257,28.6501846,157.57,157.48,23.776884]
[1729374661439,28.6501846,157.57,157.49,20.0]
[1729374661830,16.4442,157.57,157.5,23.776884]
[1729374664548,6.3166,157.58,157.52,23.776884]
[1729374669951,22.7894,157.6,157.52,23.776884]
[1729374671444,16.4442,157.6,157.52,23.776884]
[1729374678758,16.4442,157.6,157.54,23.776884]
[1729374680776,12.8925,157.62,157.54,23.776884]
[1729374682154,6.3449,157.61,157.54,23.776884]
[1729374682358,6.3449,157.61,157.54,23.749204]
[1729374688284,6.3457,157.59,157.52,43.776884]
[1729374688464,6.3457,157.59,157.52,20.0]
[1729374689859,6.3457,157.59,157.53,23.776884]
[1729374692770,6.3457,157.59,157.52,23.776884]
[1729374697491,6.3452,157.6,157.52,23.776884]
[1729374698988,22.0318,157.59,157.52,23.776884]
[1729374710885,15.6859,157.59,157.52,23.776884]
[1729374711085,6.3459,157.58,157.51,7.67884288]
[1729374712895,6.4848,157.57,157.51,7.67884288]
[1729374713079,6.3469,157.56,157.51,7.67884288]
[1729374719399,12.8314,157.57,157.51,7.67884288]
[1729374728016,6.3468,157.56,157.51,7.67884288]
[1729374733421,6.3468,157.56,157.48,23.776884]
[1729374733591,6.3471,157.55,157.48,23.776884]
[1729374741106,6.3471,157.55,157.47,23.25630904]
[1729374741428,6.3476,157.54,157.47,23.25630904]
[1729374743125,6.3476,157.54,157.47,15.4774]
[1729374749635,22.1185,157.54,157.44,7.77890904]
[1729374749929,22.1185,157.54,157.46,23.776884]
[1729374750318,22.1185,157.54,157.45,23.776884]
[1729374750726,22.1185,157.54,157.47,23.776884]
[1729374760340,15.7709,157.54,157.47,23.776884]
[1729374760525,22.1185,157.54,157.47,23.776884]
[1729374762428,6.3481,157.53,157.47,23.776884]
[1729374764127,6.349,157.51,157.47,23.776884]
[1729374764320,6.3483,157.53,157.47,23.776884]
[1729374764514,15.7709,157.54,157.44,7.77890904]
[1729374764719,6.3483,157.53,157.45,23.776884]
[1729374767843,15.7709,157.54,157.45,23.776884]
[1729374767844,6.3495,157.5,157.45,23.776884]
[1729374768215,6.3486,157.52,157.45,23.776884]
[1729374769621,31.6402,157.54,157.45,23.776884]
[1729374769920,6.3487,157.52,157.45,23.776884]
[1729374771848,31.6402,157.54,157.44,7.77890904]
[1729374772033,6.3491,157.51,157.44,7.77890904]
[1729374774043,31.6402,157.54,157.44,7.77890904]
[1729374774348,6.3494,157.5,157.43,43.776884]
[1729374776546,6.3495,157.5,157.43,43.776884]
[1729374780233,6.3488,157.51,157.43,43.776884]
[1729374782459,6.3484,157.52,157.43,43.776884]
[1729374797962,6.3484,157.52,157.43,23.776884]
[1729374803165,12.97313446,157.52,157.43,23.776884]
[1729374806670,6.3488,157.51,157.43,23.776884]
[1729374809977,6.62473446,157.52,157.43,23.776884]
[1729374810281,12.97313446,157.52,157.43,23.776884]
[1729374829403,6.62473446,157.52,157.43,23.776884]
[1729374830488,6.3491,157.51,157.43,23.776884]
[1729374833114,6.3495,157.5,157.42,16.3539]
[1729374833278,6.3495,157.5,157.43,23.776884]
[1729374839203,6.09523171,157.51,157.43,23.776884]
[1729374839410,6.3492,157.5,157.43,23.776884]
[1729374840804,12.74073171,157.51,157.41,7.77890904]
[1729374841003,12.74073171,157.51,157.39,14.08245703]
[1729374841004,6.3497,157.49,157.42,23.776884]
[1729374845792,16.4931,157.5,157.39,14.08245703]
[1729374845989,6.3503,157.48,157.4,20.0]
[1729374846415,16.4931,157.5,157.41,23.776884]
[1729374846722,6.35,157.48,157.41,23.776884]
[1729374847416,6.3496,157.49,157.41,23.776884]
[1729374847916,6.3496,157.49,157.4,23.776884]
[1729374853819,16.4931,157.5,157.4,23.776884]
[1729374854024,6.3508,157.46,157.4,23.776884]
[1729374854329,6.3505,157.47,157.4,23.776884]
[1729374860635,23.11872821,157.5,157.4,23.776884]
[1729374860820,6.3496,157.49,157.4,23.776884]
[1729374861018,6.3511,157.46,157.4,23.776884]
[1729374861237,15.874,157.49,157.39,7.90345703]
[1729374861434,6.3511,157.46,157.4,23.776884]
[1729374870553,6.3512,157.45,157.39,7.90345703]
[1729374871756,6.3515,157.45,157.39,7.90345703]
[1729374872633,6.1769,157.47,157.39,7.90345703]
[1729374873051,6.3518,157.44,157.35,6.1829]
[1729374873349,6.3518,157.44,157.36,43.776884]
[1729374876935,6.3524,157.42,157.36,43.776884]
[1729374877233,6.3519,157.44,157.36,43.776884]
[1729374877637,6.3521,157.43,157.36,43.776884]
[1729374878347,6.3521,157.43,157.36,23.776884]
[1729374879336,6.1769,157.45,157.34,23.93484108]
[1729374879543,6.3528,157.41,157.34,23.93484108]
[1729374880650,6.3528,157.41,157.35,23.776884]
[1729374883740,22.0557,157.45,157.35,23.776884]
[1729374883936,6.3516,157.44,157.35,23.776884]
[1729374884134,6.3527,157.42,157.35,23.776884]
[1729374891462,6.62831241,157.43,157.35,23.776884]
[1729374891645,6.3524,157.42,157.35,23.776884]
[1729374892054,6.3524,157.42,157.34,7.68724108]
[1729374892367,22.3204,157.42,157.34,7.68724108]
[1729374896873,15.968,157.42,157.34,7.68724108]
[1729374897047,6.3528,157.41,157.34,7.68724108]
[1729374897946,15.968,157.42,157.34,7.68724108]
[1729374898165,6.3531,157.41,157.34,7.68724108]
[1729374899076,15.968,157.42,157.34,7.68724108]
[1729374899272,22.3205,157.42,157.34,7.68724108]
[1729374904673,6.3536,157.4,157.32,23.776884]
[1729374904849,6.3544,157.38,157.3,15.9323]
[1729374905183,6.3537,157.39,157.3,15.9323]
[1729374907251,6.3537,157.39,157.33,6.3557]
[1729374908877,6.3537,157.39,157.34,6.3556]
[1729374912284,12.92176965,157.4,157.35,6.3551]
[1729374918176,6.3537,157.39,157.3,15.9323]
[1729374918375,6.3537,157.39,157.34,6.3555]
[1729374918568,12.97171912,157.39,157.34,6.3555]
[1729374924981,6.61801912,157.39,157.3,15.9323]
[1729374925191,6.3542,157.38,157.33,6.356]
[1729374929072,6.3544,157.37,157.33,6.356]
[1729374932506,6.3551,157.36,157.32,6.3563]
[1729374933472,6.3545,157.37,157.32,6.3563]
[1729374934181,6.3545,157.37,157.3,15.9323]
[1729374934182,6.3545,157.37,157.33,6.356]
[1729374936702,15.8851,157.38,157.3,15.9323]
[1729374936903,6.3557,157.34,157.29,6.3576]
[1729374937206,6.3557,157.34,157.3,6.3571]
[1729374938803,6.61589868,157.37,157.3,6.3571]
[1729374939002,6.3553,157.35,157.3,6.3571]
[1729374939397,6.3553,157.35,157.28,23.776884]
[1729374939398,6.3086,157.35,157.27,0.6288872]
[1729374939619,6.3086,157.35,157.28,6.358]
[1729374939902,6.3563,157.33,157.28,6.358]
[1729374940402,6.3551,157.36,157.27,0.6288872]
[1729374940607,6.3551,157.36,157.31,6.3568]
[1729374942697,6.61589868,157.37,157.3,6.3572]
[1729374942899,6.3553,157.35,157.3,6.3572]
[1729374943415,6.61589868,157.37,157.27,0.6288872]
[1729374943722,6.3557,157.34,157.28,23.776884]
[1729374947513,6.3559,157.34,157.28,6.358]
[1729374947889,6.61422678,157.35,157.28,6.358]
[1729374948105,6.3561,157.33,157.28,6.358]
[1729374948693,6.3557,157.34,157.29,6.3575]
[1729374956927,6.3561,157.33,157.29,6.3575]
[1729374958424,12.97040663,157.33,157.29,6.3575]
[1729374958817,6.61430663,157.33,157.27,6.9871872]
[1729374959013,6.3564,157.32,157.27,6.9871872]
[1729374967939,6.3568,157.31,157.27,6.9871872]
[1729374969258,6.3575,157.3,157.27,0.6288872]
[1729374970258,6.358,157.28,157.27,0.6288872]
[1729374971140,36.358,157.28,157.27,0.6288872]
[1729374975960,6.358,157.28,157.27,0.6288872]
[1729374979176,36.358,157.28,157.27,0.6288872]
[1729374979856,28.5109,157.28,157.27,0.6288872]
[1729374982153,35.12282922,157.28,157.27,0.6288872]
[1729374982773,65.12282922,157.28,157.27,0.6288872]
[1729374986374,35.12282922,157.28,157.27,0.6288872]
[1729374987375,54.18282922,157.28,157.27,0.6288872]
[1729374991469,84.18282922,157.28,157.27,0.6288872]
[1729374992986,78.17222922,157.28,157.27,0.6288872]
[1729374995800,98.17222922,157.28,157.27,0.6288872]
[1729374999867,68.17222922,157.28,157.27,0.6288872]
[1729375002898,98.17222922,157.28,157.27,0.6288872]
[1729375004285,68.17222922,157.28,157.27,0.6288872]
[1729375005283,98.17222922,157.28,157.27,0.6288872]
[1729375005786,136.95852218,157.28,157.27,8.72e-05]
[1729375009881,139.58861062,157.28,157.27,8.72e-05]
[1729375013486,140.69455282,157.28,157.27,8.72e-05]
[1729375017193,19.06,157.24,157.15,16.5455]
[1729375017917,6.61411258,157.23,157.15,16.5455]
[1729375018401,6.3618,157.19,157.15,16.5455]
[1729375023713,6.3622,157.18,157.15,16.5455]
[1729375024091,6.61411258,157.23,157.15,16.5455]
[1729375024292,6.3622,157.18,157.15,16.5455]
[1729375025296,15.9018,157.22,157.15,16.5455]
[1729375025499,6.3622,157.18,157.15,16.5455]
[1729375035305,6.61164641,157.2,157.16,30.139784]
[1729375035926,12.97304641,157.2,157.16,30.139784]
[1729375036135,6.61164641,157.2,157.16,30.139684]
[1729375036632,6.361,157.21,157.16,30.139684]
[1729375038231,6.61328795,157.23,157.16,30.139684]
[1729375038529,6.3614,157.2,157.16,30.139684]
[1729375045926,6.362,157.19,157.15,16.5455]
[1729375054827,6.61342676,157.21,157.12,0.6288872]
[1729375055029,6.3624,157.18,157.14,23.776884]
[1729375060543,6.3627,157.17,157.12,6.9933872]
[1729375060848,6.3627,157.17,157.13,23.776884]
[1729375062643,6.3629,157.16,157.13,23.776884]
[1729375062849,6.61342676,157.21,157.13,23.776884]
[1729375064344,6.3626,157.17,157.13,23.776884]
[1729375066641,6.61342676,157.21,157.12,0.6288872]
[1729375066949,6.363,157.16,157.12,0.6288872]
[1729375067138,6.3641,157.13,157.12,0.6288872]
[1729375067524,36.3641,157.13,157.12,0.6288872]
[1729375069843,55.4641,157.13,157.12,0.6288872]
[1729375070325,85.72180896,157.13,157.12,8.72e-05]
[1729375070521,134.98048084,157.13,157.12,8.72e-05]
[1729375071022,6.3683,157.03,156.97,28.792]
[1729375072243,6.3689,157.02,156.97,22.4214]
[1729375073925,6.3689,157.02,156.98,23.776884]
[1729375074735,15.9164,157.07,156.97,22.4214]
[1729375074736,6.369,157.01,156.97,22.4214]
[1729375075056,6.369,157.01,156.97,16.3492]
[1729375076758,15.2829,157.03,156.96,0.6288872]
[1729375076940,6.3702,156.98,156.96,0.6288872]
[1729375078228,6.60958231,157.0,156.96,0.6288872]
[1729375078652,6.37,156.99,156.96,0.6288872]
[1729375080038,6.3704,156.98,156.96,0.6288872]
[1729375080347,34.3829,157.03,156.96,0.6288872]
[1729375080546,6.3704,156.98,156.96,0.6288872]
[1729375084031,6.60935075,157.01,156.96,0.6288872]
[1729375084237,12.97845075,157.01,156.97,23.776884]
[1729375085562,6.60935075,157.01,156.97,23.776884]
[1729375085858,30.88820896,157.07,156.98,6.3702]
[1729375086063,6.3678,157.04,156.99,23.776884]
[1729375089844,6.3682,157.03,156.99,23.776884]
[1729375091252,6.60717086,157.05,156.99,23.776884]
[1729375091450,6.3693,157.01,156.99,23.776884]
[1729375091654,6.60717086,157.05,156.98,23.776884]
[1729375091959,6.3689,157.02,156.97,30.147384]
[1729375093450,6.60717086,157.05,156.98,6.3701]
[1729375093665,6.60717086,157.05,156.99,23.776884]
[1729375094340,6.3683,157.03,156.99,23.776884]
[1729375094653,6.3687,157.02,156.97,23.776884]
[1729375096059,6.369,157.01,156.97,23.776884]
[1729375099656,6.3682,157.03,156.98,6.3702]
[1729375101152,6.3678,157.04,156.97,30.147484]
[1729375101356,6.3685,157.03,156.97,30.147484]
[1729375105280,6.60717086,157.05,156.97,30.147484]
[1729375105451,6.3687,157.02,156.97,30.147484]
[1729375105769,6.3682,157.03,156.98,6.3702]
[1729375105979,6.3682,157.03,156.99,23.776884]
[1729375108000,6.3682,157.03,156.99,30.146584]
[1729375108146,6.3678,157.04,156.99,30.146584]
[1729375112466,12.97457086,157.05,157.01,23.776884]
[1729375113689,6.3674,157.05,157.01,23.776884]
[1729375114867,6.3678,157.04,157.01,23.776884]
[1729375118192,15.90150016,157.07,157.01,23.776884]
[1729375118378,6.3682,157.03,157.0,23.776884]
[1729375119088,6.3678,157.04,157.0,23.776884]
[1729375120875,6.3685,157.03,157.0,23.776884]
[1729375121380,15.90150016,157.07,157.0,23.776884]
[1729375121579,6.3678,157.04,157.0,23.776884]
[1729375122779,15.90150016,157.07,157.0,23.776884]
[1729375123099,6.3664,157.08,157.04,23.776884]
[1729375124984,22.0425,157.1,157.04,23.776884]
[1729375125185,6.3668,157.07,157.04,23.776884]
[1729375125388,22.0425,157.1,156.99,16.221]
[1729375125585,6.3674,157.05,157.0,6.3694]
[1729375125989,6.3686,157.02,156.99,16.221]
[1729375126182,6.3677,157.05,156.99,22.5905]
[1729375126883,6.3677,157.05,157.0,23.776884]
[1729375131283,6.368,157.04,157.0,23.776884]
[1729375138911,6.3665,157.07,156.97,23.776884]
[1729375139096,6.62771822,157.09,156.99,23.776884]
[1729375139302,6.3683,157.03,156.99,23.776884]
[1729375145310,6.3675,157.05,157.0,6.3691]
[1729375145610,6.3675,157.05,156.99,23.776884]
[1729375145611,6.3678,157.04,156.99,23.776884]
[1729375146514,6.3682,157.03,156.99,23.776884]
[1729375146809,6.3685,157.03,156.97,23.776884]
[1729375147718,6.3685,157.03,156.97,30.147084]
[1729375152505,22.54157934,157.07,156.97,30.147084]
[1729375152712,6.3686,157.02,156.97,30.147084]
[1729375156420,6.086,157.05,156.96,0.6288872]
[1729375156623,15.9223,157.02,156.96,0.6288872]
[1729375156802,6.3701,156.99,156.96,0.6288872]
[1729375166534,12.71134517,157.05,156.96,0.6288872]
[1729375166832,6.3694,157.0,156.96,0.6288872]
[1729375173433,6.3699,156.99,156.96,0.6288872]
[1729375175328,22.54559657,157.04,156.96,0.6288872]
[1729375175564,6.3694,157.0,156.96,0.6288872]
[1729375176422,6.3694,157.0,156.96,6.9997872]
[1729375181427,22.54559657,157.04,156.97,23.776884]
[1729375181744,22.54559657,157.04,156.97,30.147484]
[1729375181745,6.3689,157.02,156.97,30.147484]
[1729375184933,6.62549657,157.04,156.97,23.776884]
[1729375185131,6.3683,157.03,156.98,6.3699]
[1729375188655,15.8349,157.06,156.97,23.776884]
[1729375188842,6.3673,157.05,156.99,23.776884]
[1729375189041,6.3673,157.05,156.99,6.3694]
[1729375189249,6.3673,157.05,157.0,6.3694]
[1729375194257,6.3673,157.05,157.01,23.776884]
[1729375195168,6.367,157.06,157.01,30.145484]
[1729375196463,6.367,157.06,157.02,6.3684]
[1729375196671,6.3675,157.05,157.01,23.776884]
[1729375200552,6.2338,157.09,157.01,23.776884]
[1729375200868,6.2338,157.09,156.99,23.776884]
[1729375201049,6.3663,157.08,157.03,6.3679]
[1729375201374,6.3666,157.07,157.03,6.3679]
[1729375201573,22.45105414,157.1,157.04,6.3677]
[1729375202479,6.366,157.09,157.04,6.3677]
[1729375203276,22.45105414,157.1,156.99,29.946084]
[1729375203454,6.3666,157.07,156.99,29.946084]
[1729375203660,6.3666,157.07,157.03,6.3681]
[1729375204181,22.45105414,157.1,156.99,29.946084]
[1729375204357,22.45105414,157.1,157.03,6.3678]
[1729375204675,6.3663,157.08,157.03,6.3678]
[1729375205175,6.3666,157.07,157.03,6.3678]